[Event "Early-Titled-Tuesday-Blitz-September-12-2023"]
[Site "Chess.com"]
[Date "2023.09.12"]
[Round "11"]
[White "Zheenbekov86"]
[Black "Grossboss19"]
[Result "1-0"]
[WhiteElo "2426"]
[BlackElo "2516"]
[TimeControl "180+1"]
[EndTime "10:08:00 PDT"]
[Termination "Zheenbekov86 won by checkmate"]

1. e4 {[%clk 0:03:00]} 1... c6 {[%clk 0:02:57.9]} 2. d4 {[%clk 0:02:57.5]} 2...
d5 {[%clk 0:02:58.3]} 3. e5 {[%clk 0:02:55]} 3... c5 {[%clk 0:02:58.1]} 4. dxc5
{[%clk 0:02:52.3]} 4... e6 {[%clk 0:02:57.7]} 5. Nf3 {[%clk 0:02:51.6]} 5...
Bxc5 {[%clk 0:02:56.3]} 6. Bd3 {[%clk 0:02:51.5]} 6... Ne7 {[%clk 0:02:55.5]} 7.
O-O {[%clk 0:02:51.7]} 7... Ng6 {[%clk 0:02:52.5]} 8. Nbd2 {[%clk 0:02:44.3]}
8... Nd7 {[%clk 0:02:43.7]} 9. Nb3 {[%clk 0:02:43.5]} 9... Bb6 {[%clk
0:02:42.8]} 10. Bg5 {[%clk 0:02:38.6]} 10... Qc7 {[%clk 0:02:40.2]} 11. Bxg6
{[%clk 0:02:29.4]} 11... hxg6 {[%clk 0:02:38.9]} 12. Qe2 {[%clk 0:02:28.9]}
12... Nc5 {[%clk 0:02:30.6]} 13. Nxc5 {[%clk 0:02:25.2]} 13... Bxc5 {[%clk
0:02:26.2]} 14. c3 {[%clk 0:02:16.4]} 14... Bd7 {[%clk 0:02:25.4]} 15. Be3
{[%clk 0:02:14]} 15... Be7 {[%clk 0:02:22]} 16. Bd4 {[%clk 0:02:11.5]} 16... a6
{[%clk 0:02:19.1]} 17. a4 {[%clk 0:02:06.8]} 17... Bc6 {[%clk 0:01:58.3]} 18.
Qe3 {[%clk 0:02:06.3]} 18... Qd7 {[%clk 0:01:56.9]} 19. g3 {[%clk 0:02:05]}
19... Bxa4 {[%clk 0:01:49.6]} 20. h4 {[%clk 0:02:04.6]} 20... Bb5 {[%clk
0:01:48.7]} 21. Rfe1 {[%clk 0:02:03.9]} 21... Rc8 {[%clk 0:01:45.7]} 22. Ng5
{[%clk 0:01:58.7]} 22... Qd8 {[%clk 0:01:41.4]} 23. b4 {[%clk 0:01:54.4]} 23...
Qc7 {[%clk 0:01:28.1]} 24. Qf4 {[%clk 0:01:50.7]} 24... Rf8 {[%clk 0:01:09.8]}
25. Re3 {[%clk 0:01:30.7]} 25... Bxg5 {[%clk 0:01:02.5]} 26. Qxg5 {[%clk
0:01:24.6]} 26... b6 {[%clk 0:01:00.6]} 27. Rf3 {[%clk 0:01:19]} 27... Be2
{[%clk 0:00:57.9]} 28. Re3 {[%clk 0:01:16]} 28... Bc4 {[%clk 0:00:55.5]} 29. h5
{[%clk 0:01:14.7]} 29... gxh5 {[%clk 0:00:54.4]} 30. Qxh5 {[%clk 0:01:14.6]}
30... Kd7 {[%clk 0:00:40.9]} 31. Qg5 {[%clk 0:01:13.2]} 31... g6 {[%clk
0:00:37.2]} 32. Qf6 {[%clk 0:01:08.1]} 32... Kc6 {[%clk 0:00:34.1]} 33. Rf3
{[%clk 0:01:03.6]} 33... Kb7 {[%clk 0:00:23.7]} 34. Qg5 {[%clk 0:01:03.5]} 34...
Rh8 {[%clk 0:00:21.3]} 35. Rf6 {[%clk 0:00:32.7]} 35... Rh7 {[%clk 0:00:19.1]}
36. Kg2 {[%clk 0:00:31.6]} 36... Rch8 {[%clk 0:00:18]} 37. Kf3 {[%clk
0:00:31.3]} 37... Rh5 {[%clk 0:00:14.8]} 38. Qf4 {[%clk 0:00:30.4]} 38... Rf5
{[%clk 0:00:13.7]} 39. Rxf5 {[%clk 0:00:30.1]} 39... gxf5 {[%clk 0:00:14.1]} 40.
Ke3 {[%clk 0:00:28.7]} 40... Qd8 {[%clk 0:00:12.7]} 41. Rg1 {[%clk 0:00:19.9]}
41... Rh3 {[%clk 0:00:09.8]} 42. Kd2 {[%clk 0:00:19.5]} 42... Qe8 {[%clk
0:00:08.9]} 43. Ra1 {[%clk 0:00:17.8]} 43... Qh8 {[%clk 0:00:07.5]} 44. Qe3
{[%clk 0:00:17.2]} 44... Qd8 {[%clk 0:00:06.1]} 45. Rg1 {[%clk 0:00:16.3]} 45...
Qd7 {[%clk 0:00:04.4]} 46. Ra1 {[%clk 0:00:15.4]} 46... Qc7 {[%clk 0:00:03.8]}
47. Kc1 {[%clk 0:00:15.5]} 47... Rh2 {[%clk 0:00:03]} 48. Kb2 {[%clk 0:00:15.4]}
48... Qc6 {[%clk 0:00:03.2]} 49. Qg5 {[%clk 0:00:13.4]} 49... Qc7 {[%clk
0:00:02.4]} 50. Qf6 {[%clk 0:00:13.2]} 50... Rg2 {[%clk 0:00:02.2]} 51. Rh1
{[%clk 0:00:11]} 51... a5 {[%clk 0:00:02.5]} 52. Rh7 {[%clk 0:00:07.3]} 52...
Qc6 {[%clk 0:00:02.7]} 53. Rxf7+ {[%clk 0:00:07]} 53... Ka6 {[%clk 0:00:02.9]}
54. Qe7 {[%clk 0:00:03.9]} 54... axb4 {[%clk 0:00:02.8]} 55. Qxb4 {[%clk
0:00:03.5]} 55... Qb5 {[%clk 0:00:03]} 56. Qxb5+ {[%clk 0:00:02.2]} 56... Kxb5
{[%clk 0:00:03.2]} 57. Rf6 {[%clk 0:00:02.7]} 57... Rh2 {[%clk 0:00:01.9]} 58.
Rxe6 {[%clk 0:00:03]} 58... Rh5 {[%clk 0:00:02]} 59. Rf6 {[%clk 0:00:02.8]}
59... Bd3 {[%clk 0:00:01.7]} 60. e6 {[%clk 0:00:02.8]} 60... Kc6 {[%clk
0:00:02.2]} 61. e7+ {[%clk 0:00:03]} 61... Kd7 {[%clk 0:00:02.8]} 62. Rf7 {[%clk
0:00:03.2]} 62... Ke8 {[%clk 0:00:02.9]} 63. Rg7 {[%clk 0:00:03.3]} 63... b5
{[%clk 0:00:03]} 64. Bf6 {[%clk 0:00:03.5]} 64... Rh8 {[%clk 0:00:03]} 65. Rg5
{[%clk 0:00:02.5]} 65... Rh6 {[%clk 0:00:01.7]} 66. Rg8+ {[%clk 0:00:02.3]}
66... Kf7 {[%clk 0:00:02.3]} 67. e8=Q+ {[%clk 0:00:01.9]} 67... Kxf6 {[%clk
0:00:03.2]} 68. Qf8+ {[%clk 0:00:01.5]} 68... Ke5 {[%clk 0:00:02.9]} 69. Qe7+
{[%clk 0:00:01.7]} 69... Re6 {[%clk 0:00:02.4]} 70. f4+ {[%clk 0:00:02.1]} 70...
Ke4 {[%clk 0:00:02.5]} 71. Qxe6+ {[%clk 0:00:02.6]} 71... Kf3 {[%clk 0:00:03.4]}
72. Rh8 {[%clk 0:00:03.1]} 72... Be4 {[%clk 0:00:04.3]} 73. Qe5 {[%clk
0:00:02.8]} 73... b4 {[%clk 0:00:04.3]} 74. Qd4 {[%clk 0:00:03.1]} 74... bxc3+
{[%clk 0:00:04.4]} 75. Qxc3+ {[%clk 0:00:03.8]} 75... Kf2 {[%clk 0:00:04.8]} 76.
Qd2+ {[%clk 0:00:03.3]} 76... Kf3 {[%clk 0:00:04.8]} 77. Rh2 {[%clk 0:00:03.9]}
77... d4 {[%clk 0:00:04.3]} 78. Qe2+ {[%clk 0:00:04.2]} 78... Kxg3 {[%clk
0:00:04.8]} 79. Qf2+ {[%clk 0:00:04.7]} 79... Kg4 {[%clk 0:00:05.3]} 80. Rh4#
{[%clk 0:00:04.5]} 1-0

[Event "Early-Titled-Tuesday-Blitz-September-12-2023"]
[Site "Chess.com"]
[Date "2023.09.12"]
[Round "11"]
[White "pirulillo"]
[Black "Chessdreamer2020"]
[Result "1/2-1/2"]
[WhiteElo "2333"]
[BlackElo "2516"]
[TimeControl "180+1"]
[EndTime "10:08:04 PDT"]
[Termination "Game drawn by stalemate"]

1. e4 {[%clk 0:03:00.9]} 1... d6 {[%clk 0:02:23.5]} 2. d4 {[%clk 0:03:00.3]}
2... Nf6 {[%clk 0:02:23.8]} 3. Nc3 {[%clk 0:03:00.3]} 3... c6 {[%clk 0:02:24.2]}
4. Be2 {[%clk 0:02:56]} 4... e5 {[%clk 0:02:23.8]} 5. Be3 {[%clk 0:02:53.9]}
5... Nbd7 {[%clk 0:02:23.5]} 6. g4 {[%clk 0:02:49.7]} 6... exd4 {[%clk
0:02:09.8]} 7. Qxd4 {[%clk 0:02:48.2]} 7... Ne5 {[%clk 0:01:54.4]} 8. f3 {[%clk
0:02:42.4]} 8... h6 {[%clk 0:01:47.8]} 9. O-O-O {[%clk 0:02:40.3]} 9... Be7
{[%clk 0:01:47.3]} 10. h4 {[%clk 0:02:39.5]} 10... Qa5 {[%clk 0:01:41.5]} 11.
Nh3 {[%clk 0:02:33.2]} 11... Be6 {[%clk 0:01:34.3]} 12. Nf4 {[%clk 0:02:31.2]}
12... Bxa2 {[%clk 0:01:26.9]} 13. g5 {[%clk 0:02:23.6]} 13... Nfd7 {[%clk
0:01:18.3]} 14. gxh6 {[%clk 0:02:10.4]} 14... gxh6 {[%clk 0:01:17.4]} 15. Nh5
{[%clk 0:01:58.3]} 15... Be6 {[%clk 0:01:08.9]} 16. f4 {[%clk 0:01:56.1]} 16...
c5 {[%clk 0:00:51.9]} 17. Qa4 {[%clk 0:01:46.7]} 17... Qxa4 {[%clk 0:00:51.4]}
18. Nxa4 {[%clk 0:01:47.6]} 18... Nc4 {[%clk 0:00:51.9]} 19. Bxc4 {[%clk
0:01:43.5]} 19... Bxc4 {[%clk 0:00:52.8]} 20. Ng7+ {[%clk 0:01:39.2]} 20... Kf8
{[%clk 0:00:52.9]} 21. Nf5 {[%clk 0:01:39.1]} 21... Be2 {[%clk 0:00:51.6]} 22.
Rd2 {[%clk 0:01:37.5]} 22... Bf3 {[%clk 0:00:51.8]} 23. Re1 {[%clk 0:01:31.5]}
23... Bxe4 {[%clk 0:00:49.6]} 24. Nxd6 {[%clk 0:01:31.6]} 24... Bxd6 {[%clk
0:00:38.5]} 25. Rxd6 {[%clk 0:01:32.5]} 25... Bc6 {[%clk 0:00:35.1]} 26. Nxc5
{[%clk 0:01:30.4]} 26... Nf6 {[%clk 0:00:33.1]} 27. Rxf6 {[%clk 0:01:27]} 27...
Kg7 {[%clk 0:00:32.3]} 28. Bd4 {[%clk 0:01:26]} 28... Rhd8 {[%clk 0:00:31.7]}
29. Bc3 {[%clk 0:01:23.8]} 29... Bd5 {[%clk 0:00:16.6]} 30. Re7 {[%clk
0:01:19.6]} 30... Kf8 {[%clk 0:00:12.4]} 31. Re1 {[%clk 0:01:12.6]} 31... Re8
{[%clk 0:00:10.1]} 32. Rxe8+ {[%clk 0:01:07.8]} 32... Kxe8 {[%clk 0:00:10.2]}
33. Rxh6 {[%clk 0:01:08.4]} 33... Ke7 {[%clk 0:00:10.6]} 34. Bf6+ {[%clk
0:00:57.2]} 34... Kd6 {[%clk 0:00:09.3]} 35. Bd4+ {[%clk 0:00:57.3]} 35... Ke7
{[%clk 0:00:09]} 36. Nd3 {[%clk 0:00:51]} 36... Rg8 {[%clk 0:00:08.9]} 37. Kd2
{[%clk 0:00:47.5]} 37... b6 {[%clk 0:00:09]} 38. h5 {[%clk 0:00:47.1]} 38...
Rg2+ {[%clk 0:00:09.1]} 39. Kc3 {[%clk 0:00:46.9]} 39... Rh2 {[%clk 0:00:09]}
40. Rh8 {[%clk 0:00:45.8]} 40... Rh3 {[%clk 0:00:06.4]} 41. h6 {[%clk
0:00:45.7]} 41... Be4 {[%clk 0:00:06.7]} 42. Bg7 {[%clk 0:00:37.8]} 42... Ke6
{[%clk 0:00:05.4]} 43. Ra8 {[%clk 0:00:37.6]} 43... Bxa8 {[%clk 0:00:04.4]} 44.
Kd4 {[%clk 0:00:31.9]} 44... Bc6 {[%clk 0:00:04.3]} 45. Ne5 {[%clk 0:00:28.5]}
45... Be8 {[%clk 0:00:04.4]} 46. Ng4 {[%clk 0:00:28.2]} 46... f6 {[%clk
0:00:04.1]} 47. Nxf6 {[%clk 0:00:28.1]} 47... Bg6 {[%clk 0:00:04]} 48. c4 {[%clk
0:00:26.7]} 48... Rh2 {[%clk 0:00:03.5]} 49. b4 {[%clk 0:00:26.8]} 49... Kf5
{[%clk 0:00:03.7]} 50. c5 {[%clk 0:00:26.9]} 50... Rd2+ {[%clk 0:00:03.4]} 51.
Kc3 {[%clk 0:00:26.6]} 51... Rd8 {[%clk 0:00:03.4]} 52. c6 {[%clk 0:00:26.2]}
52... Rc8 {[%clk 0:00:02.9]} 53. b5 {[%clk 0:00:26.7]} 53... a6 {[%clk
0:00:03.3]} 54. Kb4 {[%clk 0:00:27]} 54... axb5 {[%clk 0:00:03.4]} 55. Kxb5
{[%clk 0:00:27.4]} 55... Kxf4 {[%clk 0:00:03.7]} 56. Kxb6 {[%clk 0:00:27.6]}
56... Be4 {[%clk 0:00:04]} 57. c7 {[%clk 0:00:26.6]} 57... Bf5 {[%clk
0:00:03.9]} 58. h7 {[%clk 0:00:26.9]} 58... Bxh7 {[%clk 0:00:03.7]} 59. Nxh7
{[%clk 0:00:27.5]} 59... Kf5 {[%clk 0:00:04.1]} 60. Bc3 {[%clk 0:00:23.4]} 60...
Ke6 {[%clk 0:00:04.4]} 61. Nf6 {[%clk 0:00:23.1]} 61... Kd6 {[%clk 0:00:04.1]}
62. Ne4+ {[%clk 0:00:22.4]} 62... Kd7 {[%clk 0:00:03.9]} 63. Nc5+ {[%clk
0:00:22.3]} 63... Kd6 {[%clk 0:00:04.2]} 64. Na6 {[%clk 0:00:22.1]} 64... Kd7
{[%clk 0:00:04.2]} 65. Kb7 {[%clk 0:00:22.5]} 65... Re8 {[%clk 0:00:03.5]} 66.
Nc5+ {[%clk 0:00:22.3]} 66... Kd6 {[%clk 0:00:03.3]} 67. Ne4+ {[%clk 0:00:20.5]}
67... Ke6 {[%clk 0:00:02.6]} 68. c8=Q+ {[%clk 0:00:20.1]} 68... Rxc8 {[%clk
0:00:02.6]} 69. Kxc8 {[%clk 0:00:21]} 69... Kd5 {[%clk 0:00:03.5]} 70. Nf6+
{[%clk 0:00:20.5]} 70... Ke6 {[%clk 0:00:03.9]} 71. Kc7 {[%clk 0:00:19.4]} 71...
Kf5 {[%clk 0:00:04.1]} 72. Kd6 {[%clk 0:00:19.6]} 72... Kf4 {[%clk 0:00:04.3]}
73. Kd5 {[%clk 0:00:19.7]} 73... Kf3 {[%clk 0:00:04.5]} 74. Ne4 {[%clk
0:00:19.8]} 74... Kf4 {[%clk 0:00:04.9]} 75. Be5+ {[%clk 0:00:19.4]} 75... Ke3
{[%clk 0:00:05.1]} 76. Nc5 {[%clk 0:00:18.5]} 76... Kf3 {[%clk 0:00:05.1]} 77.
Kd4 {[%clk 0:00:18.8]} 77... Kg4 {[%clk 0:00:05.2]} 78. Ke4 {[%clk 0:00:19.1]}
78... Kg5 {[%clk 0:00:05.7]} 79. Ne6+ {[%clk 0:00:18.7]} 79... Kg4 {[%clk
0:00:06]} 80. Nf8 {[%clk 0:00:17.4]} 80... Kg5 {[%clk 0:00:05.7]} 81. Bf4+
{[%clk 0:00:17.5]} 81... Kg4 {[%clk 0:00:05.9]} 82. Ne6 {[%clk 0:00:17.5]} 82...
Kh3 {[%clk 0:00:06]} 83. Kf3 {[%clk 0:00:17.3]} 83... Kh4 {[%clk 0:00:06.2]} 84.
Nf8 {[%clk 0:00:14.5]} 84... Kh3 {[%clk 0:00:06.4]} 85. Ng6 {[%clk 0:00:13.8]}
1/2-1/2

[Event "Early-Titled-Tuesday-Blitz-September-12-2023"]
[Site "Chess.com"]
[Date "2023.09.12"]
[Round "11"]
[White "seramoral"]
[Black "sokidze"]
[Result "0-1"]
[WhiteElo "2623"]
[BlackElo "2789"]
[TimeControl "180+1"]
[EndTime "10:08:12 PDT"]
[Termination "sokidze won by resignation"]

1. c4 {[%clk 0:02:59.6]} 1... c5 {[%clk 0:02:59.6]} 2. Nc3 {[%clk 0:02:58.8]}
2... Nc6 {[%clk 0:03:00.2]} 3. g3 {[%clk 0:02:52.4]} 3... g6 {[%clk 0:03:00.6]}
4. Bg2 {[%clk 0:02:47.6]} 4... Bg7 {[%clk 0:03:01.3]} 5. a3 {[%clk 0:02:48.2]}
5... e6 {[%clk 0:02:56.8]} 6. Rb1 {[%clk 0:02:46.4]} 6... Nge7 {[%clk
0:02:54.7]} 7. b4 {[%clk 0:02:45.8]} 7... cxb4 {[%clk 0:02:54.9]} 8. axb4 {[%clk
0:02:43.3]} 8... O-O {[%clk 0:02:55.6]} 9. c5 {[%clk 0:02:36.2]} 9... a5 {[%clk
0:02:34.1]} 10. b5 {[%clk 0:02:33.7]} 10... Nb4 {[%clk 0:02:34.6]} 11. Nf3
{[%clk 0:02:32.2]} 11... d6 {[%clk 0:02:20]} 12. cxd6 {[%clk 0:02:29.2]} 12...
Qxd6 {[%clk 0:02:20.9]} 13. O-O {[%clk 0:02:29.6]} 13... Bd7 {[%clk 0:02:18.1]}
14. Qb3 {[%clk 0:02:25]} 14... Rfc8 {[%clk 0:02:16.2]} 15. Ba3 {[%clk
0:02:21.4]} 15... Ned5 {[%clk 0:02:04.4]} 16. Rfc1 {[%clk 0:02:18]} 16... Qb6
{[%clk 0:01:53.2]} 17. e3 {[%clk 0:02:04.9]} 17... Nxc3 {[%clk 0:01:43.9]} 18.
dxc3 {[%clk 0:02:05]} 18... Nd3 {[%clk 0:01:44.6]} 19. Rc2 {[%clk 0:02:05]}
19... a4 {[%clk 0:01:34.5]} 20. Qa2 {[%clk 0:02:00.7]} 20... Be8 {[%clk
0:01:06.9]} 21. c4 {[%clk 0:01:35.7]} 21... Nc5 {[%clk 0:00:56.3]} 22. Nd2
{[%clk 0:01:28]} 22... Rd8 {[%clk 0:00:45.8]} 23. Ne4 {[%clk 0:01:25.7]} 23...
Nb3 {[%clk 0:00:43.2]} 24. Be7 {[%clk 0:01:19]} 24... Rdc8 {[%clk 0:00:35.8]}
25. Nf6+ {[%clk 0:01:11.2]} 25... Kh8 {[%clk 0:00:36.1]} 26. Rd1 {[%clk
0:01:02.5]} 26... Qc7 {[%clk 0:00:23.9]} 27. Bd6 {[%clk 0:01:00.8]} 27... Qb6
{[%clk 0:00:24.4]} 28. Be5 {[%clk 0:00:56.2]} 28... Qc5 {[%clk 0:00:13.5]} 29.
Qb2 {[%clk 0:00:54.5]} 29... a3 {[%clk 0:00:11.1]} 30. Qxb3 {[%clk 0:00:50.9]}
30... Qxe5 {[%clk 0:00:11.2]} 31. Nxe8 {[%clk 0:00:51.6]} 31... Rxe8 {[%clk
0:00:11.6]} 32. Bxb7 {[%clk 0:00:52]} 32... Ra7 {[%clk 0:00:10.2]} 33. Bc6
{[%clk 0:00:47]} 33... Rb8 {[%clk 0:00:10.7]} 34. c5 {[%clk 0:00:44.6]} 34...
Bf8 {[%clk 0:00:04.1]} 35. Qc4 {[%clk 0:00:42.1]} 35... a2 {[%clk 0:00:04.3]}
36. Rxa2 {[%clk 0:00:41.1]} 36... Rxa2 {[%clk 0:00:05.2]} 37. Qxa2 {[%clk
0:00:40.8]} 37... Bxc5 {[%clk 0:00:06]} 38. Rd7 {[%clk 0:00:35]} 38... Kg8
{[%clk 0:00:06]} 39. Kg2 {[%clk 0:00:30.2]} 39... h5 {[%clk 0:00:06.2]} 40. Qa4
{[%clk 0:00:27.7]} 40... Bb6 {[%clk 0:00:05.6]} 41. Qh4 {[%clk 0:00:27]} 41...
Qc5 {[%clk 0:00:02]} 42. Qe7 {[%clk 0:00:26.2]} 42... Qxe7 {[%clk 0:00:02.1]}
43. Rxe7 {[%clk 0:00:26.9]} 43... Kf8 {[%clk 0:00:02.5]} 44. Rd7 {[%clk
0:00:25.9]} 44... Bc5 {[%clk 0:00:02.6]} 45. h4 {[%clk 0:00:26]} 45... Bb6
{[%clk 0:00:02.6]} 46. Kf3 {[%clk 0:00:25]} 46... Kg7 {[%clk 0:00:02.7]} 47. Ke4
{[%clk 0:00:23.9]} 47... Kf6 {[%clk 0:00:03.2]} 48. f4 {[%clk 0:00:24.1]} 48...
Bc5 {[%clk 0:00:03.2]} 49. Kf3 {[%clk 0:00:23.4]} 49... Bb6 {[%clk 0:00:03.7]}
50. e4 {[%clk 0:00:23.8]} 50... Rd8 {[%clk 0:00:02.9]} 51. e5+ {[%clk
0:00:23.2]} 51... Kg7 {[%clk 0:00:03.4]} 52. Rb7 {[%clk 0:00:21.9]} 52... Rd3+
{[%clk 0:00:03.7]} 53. Ke2 {[%clk 0:00:20.4]} 53... Re3+ {[%clk 0:00:03.8]} 54.
Kd2 {[%clk 0:00:20.8]} 54... Bc5 {[%clk 0:00:04.4]} 55. Be8 {[%clk 0:00:19]}
55... Rxg3 {[%clk 0:00:04.6]} 56. Rxf7+ {[%clk 0:00:19]} 56... Kh6 {[%clk
0:00:03.3]} 57. Rf6 {[%clk 0:00:18.8]} 57... Be3+ {[%clk 0:00:01.9]} 58. Ke2
{[%clk 0:00:18.2]} 58... Bd4 {[%clk 0:00:02]} 59. Rxe6 {[%clk 0:00:17.2]} 59...
Kg7 {[%clk 0:00:02.5]} 60. b6 {[%clk 0:00:17.2]} 60... Rb3 {[%clk 0:00:01.9]}
61. Rxg6+ {[%clk 0:00:15.9]} 61... Kf8 {[%clk 0:00:02.5]} 62. Bd7 {[%clk
0:00:14.9]} 62... Bxb6 {[%clk 0:00:02.8]} 63. Rg5 {[%clk 0:00:14.7]} 63... Re3+
{[%clk 0:00:03.1]} 64. Kd2 {[%clk 0:00:14.5]} 64... Rf3 {[%clk 0:00:03.7]} 65.
Rf5+ {[%clk 0:00:13.8]} 65... Ke7 {[%clk 0:00:04.1]} 66. Bc6 {[%clk 0:00:14.2]}
66... Be3+ {[%clk 0:00:04.3]} 67. Ke2 {[%clk 0:00:14.2]} 67... Rxf4 {[%clk
0:00:05.2]} 68. Rxh5 {[%clk 0:00:14.9]} 68... Bd4 {[%clk 0:00:05.6]} 69. Bd5
{[%clk 0:00:11.2]} 69... Bc5 {[%clk 0:00:05.3]} 70. Rh7+ {[%clk 0:00:10.6]}
70... Kf8 {[%clk 0:00:05.4]} 71. e6 {[%clk 0:00:10.9]} 71... Rd4 {[%clk
0:00:03.5]} 72. Bb3 {[%clk 0:00:09.9]} 72... Re4+ {[%clk 0:00:03.4]} 73. Kd3
{[%clk 0:00:09.9]} 73... Rd4+ {[%clk 0:00:03.6]} 74. Kc3 {[%clk 0:00:10.1]}
74... Re4 {[%clk 0:00:04]} 75. h5 {[%clk 0:00:10.2]} 75... Bb4+ {[%clk
0:00:04.1]} 76. Kd3 {[%clk 0:00:10.2]} 76... Rf4 {[%clk 0:00:04.5]} 77. h6
{[%clk 0:00:10.6]} 77... Bc5 {[%clk 0:00:04.7]} 78. Rh8+ {[%clk 0:00:10.3]}
78... Ke7 {[%clk 0:00:05.2]} 79. h7 {[%clk 0:00:10.8]} 79... Rd4+ {[%clk
0:00:04.4]} 80. Kc3 {[%clk 0:00:10.6]} 80... Rh4 {[%clk 0:00:03.9]} 81. Ra8
{[%clk 0:00:09.8]} 81... Rxh7 {[%clk 0:00:02.8]} 82. Rc8 {[%clk 0:00:09.5]}
82... Rh3+ {[%clk 0:00:02.4]} 83. Kc4 {[%clk 0:00:09.5]} 83... Bd6 {[%clk
0:00:03.3]} 84. Kd5 {[%clk 0:00:10]} 84... Rxb3 {[%clk 0:00:03.1]} 85. Ra8
{[%clk 0:00:09.8]} 85... Rb5+ {[%clk 0:00:03.3]} 86. Kc6 {[%clk 0:00:10.3]}
86... Rc5+ {[%clk 0:00:03.8]} 87. Kb6 {[%clk 0:00:10.9]} 87... Kxe6 {[%clk
0:00:04.5]} 88. Re8+ {[%clk 0:00:11.8]} 88... Kd5 {[%clk 0:00:05]} 89. Re2
{[%clk 0:00:12.3]} 89... Rc1 {[%clk 0:00:05.4]} 90. Rd2+ {[%clk 0:00:12.6]}
90... Ke6 {[%clk 0:00:06.1]} 91. Re2+ {[%clk 0:00:13.1]} 91... Kd7 {[%clk
0:00:06.6]} 92. Kb5 {[%clk 0:00:13.7]} 92... Rc5+ {[%clk 0:00:06]} 93. Kb6
{[%clk 0:00:14.1]} 93... Rd5 {[%clk 0:00:06.3]} 94. Rh2 {[%clk 0:00:13.4]} 94...
Bc7+ {[%clk 0:00:06.6]} 95. Kb7 {[%clk 0:00:12.4]} 95... Bxh2 {[%clk 0:00:07.5]}
0-1